fUST/lending_fUST_20251231
["ID","MTS","AMOUNT","RATE_DAILY","PERIOD"]
[400160460,1767161439011,-273.43867277,0.00011718,2]
[400160461,1767161439020,-153.24570318,0.00011718,2]
[400160462,1767161439030,-468.31053264,0.00011891,2]
[400160463,1767161439040,-303.512707,0.00011991,2]
[400160464,1767161439049,-1731.71879822,0.00012018,2]
[400160465,1767161439059,-3078.61119683,0.00012018,2]
[400160466,1767161439068,-851.19032888,0.00012018,2]
[400160467,1767161439077,-512.96386736,0.00012018,2]
[400160468,1767161439087,-796.87,0.00012155,2]
[400160469,1767161439096,-39263.6318452,0.00012214,2]
[400160470,1767161439105,-300.0,0.00012292,2]
[400160471,1767161439114,-300.0,0.00012292,2]
[400160472,1767161439124,-300.0,0.00012292,2]
[400160473,1767161439133,-300.0,0.00012292,2]
[400160474,1767161439142,-300.0,0.00012292,2]
[400160475,1767161439152,-300.0,0.00012292,2]
[400160476,1767161439161,-300.0,0.00012292,2]
[400160477,1767161439170,-300.0,0.00012292,2]
[400160478,1767161439180,-300.0,0.00012292,2]
[400160479,1767161439190,-300.0,0.00012292,2]
[400160480,1767161439199,-300.0,0.00012292,2]
[400160481,1767161439209,-300.0,0.00012292,2]
[400160482,1767161439218,-300.0,0.00012292,2]
[400160483,1767161439227,-300.0,0.00012292,2]
[400160484,1767161439236,-300.0,0.00012292,2]
[400160485,1767161439246,-1247.48,0.00012329,2]
[400160486,1767161439255,-600.0,0.00012456,2]
[400160487,1767161439264,-4810.32999505,0.00012528,2]
[400160488,1767161439273,-251.74174285,0.00012574,2]
[400160489,1767161439283,-1915.17823998,0.00012635,2]
[400160490,1767161439292,-1593.74,0.00012734,2]
[400160491,1767161439301,-420.0,0.00012737,2]
[400160492,1767161439311,-420.0,0.00012757,2]
[400160493,1767161439320,-420.0,0.00012757,2]
[400160494,1767161439329,-1680.0,0.00012758,2]
[400160495,1767161439338,-923.33496125,0.00012807,2]
[400160496,1767161439347,-585.39,0.00012861,2]
[400160497,1767161439356,-178.61,0.00012861,2]
[400160498,1767161439366,-178.61,0.00012861,2]
[400160499,1767161439375,-178.61,0.00012861,2]
[400160500,1767161439384,-178.61,0.00012861,2]
[400160501,1767161439394,-178.61,0.00012861,2]
[400160502,1767161439538,-178.61,0.00012861,2]
[400160503,1767161439548,-178.63,0.00012861,2]
[400160504,1767161439561,-179.51,0.00012861,2]
[400160505,1767161439571,-289.0,0.00012885,2]
[400160506,1767161439580,-10682.31729811,0.000129,2]
[400160507,1767161439590,-2006.0,0.00013,2]
[400160508,1767161439600,-468.3105326,0.00013033,2]
[400160509,1767161439609,-177.12142034,0.00013273,2]
[400160510,1767161439619,-500.0,0.00013273,2]
[400160511,1767161439629,-500.0,0.00013273,2]
[400160512,1767161439640,-500.0,0.00013273,2]
[400160513,1767161439649,-500.0,0.00013273,2]
[400160514,1767161439659,-500.0,0.00013273,2]
[400160515,1767161439668,-500.0,0.00013273,2]
[400160516,1767161439678,-500.0,0.00013273,2]
[400160517,1767161439687,-160.63497667,0.00013273,2]
[400160518,1767161439697,-500.0,0.00013273,2]
[400160519,1767161439707,-500.0,0.00013273,2]
[400160520,1767161439717,-500.0,0.00013273,2]
[400160521,1767161439726,-500.0,0.00013273,2]
[400160522,1767161439736,-381.16221649,0.00013273,2]
[400160523,1767161439746,-502.45533374,0.00013273,2]
[400160524,1767161439755,-500.0,0.00013273,2]
[400160525,1767161439765,-500.0,0.00013273,2]
[400160526,1767161439775,-500.0,0.00013273,2]
[400160527,1767161439784,-500.0,0.00013273,2]
[400160528,1767161439794,-500.0,0.00013273,2]
[400160529,1767161439804,-500.0,0.00013273,2]
[400160530,1767161439813,-500.0,0.00013273,2]
[400160531,1767161439823,-500.0,0.00013273,2]
[400160532,1767161439832,-500.0,0.00013273,2]
[400160533,1767161439842,-500.0,0.00013273,2]
[400160534,1767161439851,-500.0,0.00013273,2]
[400160535,1767161439861,-585.46093203,0.00013273,2]
[400160536,1767161439870,-500.0,0.00013273,2]
[400160537,1767161439880,-499.96763801,0.00013273,2]
[400160538,1767161439889,-500.0,0.00013273,2]
[400160539,1767161439899,-500.0,0.00013273,2]
[400160540,1767161439908,-500.0,0.00013273,2]
[400160541,1767161439918,-500.0,0.00013273,2]
[400160542,1767161439927,-500.0,0.00013273,2]
[400160543,1767161439937,-500.0,0.00013273,2]
[400160544,1767161439946,-500.0,0.00013273,2]
[400160545,1767161439955,-501.55479895,0.00013273,2]
[400160546,1767161439965,-459.90209075,0.00013273,2]
[400160547,1767161439974,-500.0,0.00013273,2]
[400160548,1767161439983,-500.0,0.00013273,2]
[400160550,1767161439992,-500.0,0.00013273,2]
[400160552,1767161440002,-500.0,0.00013273,2]
[400160554,1767161440011,-500.0,0.00013273,2]
[400160556,1767161440020,-500.0,0.00013273,2]
[400160558,1767161440030,-500.0,0.00013273,2]
[400160560,1767161440039,-500.0,0.00013273,2]
[400160562,1767161440048,-500.0,0.00013273,2]
[400160564,1767161440057,-500.0,0.00013273,2]
[400160566,1767161440067,-500.0,0.00013273,2]
[400160568,1767161440076,-500.0,0.00013273,2]
[400160570,1767161440085,-500.0,0.00013273,2]
[400160572,1767161440095,-2390.61,0.00013312,2]
[400160574,1767161440104,-151.0,0.000134,2]
[400160576,1767161440114,-3404.76131553,0.00013515,2]
[400160578,1767161440123,-10000.0,0.0001354,2]
[400160580,1767161440133,-395.88900207,0.00013657,2]
[400160582,1767161440142,-300.0,0.00013673,2]
[400160584,1767161440152,-500.0,0.00013698,2]
[400160586,1767161440161,-500.0,0.00013698,2]
[400160588,1767161440170,-612.02171105,0.00013698,2]
[400160589,1767161440179,-500.0,0.00013698,2]
[400160590,1767161440189,-500.0,0.00013698,2]
[400160591,1767161440199,-500.0,0.00013698,2]
[400160592,1767161440208,-500.0,0.00013698,2]
[400160593,1767161440217,-500.0,0.00013698,2]
[400160594,1767161440227,-500.0,0.00013698,2]
[400160595,1767161440235,-500.0,0.00013698,2]
[400160596,1767161440245,-500.0,0.00013698,2]
[400160597,1767161440254,-500.0,0.00013698,2]
[400160598,1767161440264,-500.0,0.00013698,2]
[400160599,1767161440273,-500.0,0.00013698,2]
[400160600,1767161440282,-500.0,0.00013698,2]
[400160601,1767161440292,-500.0,0.00013698,2]
[400160602,1767161440302,-500.0,0.00013698,2]
[400160603,1767161440311,-352.77068895,0.00013698,2]
[400160604,1767161440320,-1196.51,0.00013698,2]
[400160605,1767161440330,-1196.51,0.00013698,2]
[400160606,1767161440339,-1196.51,0.00013698,2]
[400160607,1767161440348,-302.87133682,0.00013698,2]
[400160608,1767161440358,-1196.51,0.00013698,2]
[400160610,1767161440367,-1196.51,0.00013698,2]
[400160611,1767161440377,-1196.51,0.00013698,2]
[400160612,1767161440386,-1196.51,0.00013698,2]
[400160613,1767161440395,-1196.51,0.00013698,2]
[400160614,1767161440404,-1196.51,0.00013698,2]
[400160615,1767161440414,-1196.51,0.00013698,2]
[400160616,1767161440424,-1196.51,0.00013698,2]
[400160617,1767161440433,-1196.51,0.00013698,2]
[400160618,1767161440442,-1196.51,0.00013698,2]
[400160619,1767161440452,-1196.51,0.00013698,2]
[400160620,1767161440461,-1196.51,0.00013698,2]
[400160621,1767161440471,-1196.51,0.00013698,2]
[400160623,1767161440480,-1196.51,0.00013698,2]
[400160624,1767161440489,-1196.51,0.00013698,2]
[400160625,1767161440499,-1196.51,0.00013698,2]
[400160626,1767161440509,-1196.51,0.00013698,2]
[400160627,1767161440518,-1196.51,0.00013698,2]
[400160628,1767161440528,-1196.51,0.00013698,2]
[400160629,1767161440537,-1196.51,0.00013698,2]
[400160630,1767161440547,-1196.67,0.00013698,2]
[400160631,1767161440561,-500.0,0.00013698,2]
[400160632,1767161440570,-262.16767073,0.00013698,2]
[400160633,1767161440579,-500.0,0.00013699,2]
[400160634,1767161440589,-500.0,0.00013699,2]
[400160635,1767161440599,-500.0,0.00013699,2]
[400160636,1767161440608,-500.0,0.00013699,2]
[400160637,1767161440617,-500.0,0.00013699,2]
[400160638,1767161440628,-500.0,0.00013699,2]
[400160639,1767161440638,-500.0,0.00013699,2]
[400160640,1767161440647,-500.0,0.00013699,2]
[400160641,1767161440657,-500.0,0.00013699,2]
[400160642,1767161440666,-565.555714,0.00013699,2]
[400160643,1767161440677,-500.0,0.00013699,2]
[400160644,1767161440686,-500.0,0.00013699,2]
[400160645,1767161440696,-500.0,0.00013699,2]
[400160646,1767161440706,-500.0,0.00013699,2]
[400160647,1767161440715,-500.0,0.00013699,2]
[400160649,1767161440724,-500.0,0.00013699,2]
[400160651,1767161440734,-159.68059141,0.00013699,2]
[400160653,1767161440744,-500.0,0.00013699,2]
[400160654,1767161440753,-500.0,0.00013699,2]
[400160655,1767161440763,-500.0,0.00013699,2]
[400160656,1767161440772,-500.0,0.00013699,2]
[400160657,1767161440782,-150.35034149,0.00013699,2]
[400160658,1767161440791,-500.0,0.00013699,2]
[400160659,1767161440801,-303.93264249,0.00013699,2]
[400160660,1767161440810,-587.30545204,0.00013699,2]
[400160661,1767161440819,-500.0,0.00013699,2]
[400160662,1767161440828,-500.0,0.00013699,2]
[400160663,1767161440838,-500.0,0.00013699,2]
[400160664,1767161440847,-500.0,0.00013699,2]
[400160665,1767161440857,-160.18745103,0.00013699,2]
[400160666,1767161440866,-158.38534385,0.00013699,2]
[400160667,1767161440875,-500.0,0.00013699,2]
[400160668,1767161440884,-158.38886572,0.00013699,2]
[400160669,1767161440894,-237.8458189,0.00013699,2]
[400160670,1767161440903,-188.42009972,0.00013699,2]
[400160671,1767161440912,-500.0,0.00013699,2]
[400160672,1767161440922,-500.0,0.00013699,2]
[400160673,1767161440932,-500.0,0.00013699,2]
[400160674,1767161440941,-158.39206841,0.00013699,2]
[400160675,1767161440951,-500.0,0.00013699,2]
[400160676,1767161440960,-500.0,0.00013699,2]
[400160677,1767161440969,-158.18512633,0.00013699,2]
[400160678,1767161440979,-500.0,0.00013699,2]
[400160679,1767161440988,-500.0,0.00013699,2]
[400160680,1767161440998,-158.38534465,0.00013699,2]
[400160681,1767161441008,-416.75445415,0.00013699,2]
[400160682,1767161441018,-500.0,0.00013699,2]
[400160683,1767161441027,-500.0,0.00013699,2]
[400160684,1767161441037,-157.18386067,0.00013699,2]
[400160685,1767161441047,-260.2481779,0.00013699,2]
[400160686,1767161441057,-158.18512013,0.00013699,2]
[400160687,1767161441066,-500.0,0.00013699,2]
[400160688,1767161441075,-500.0,0.00013699,2]
[400160689,1767161441084,-500.0,0.00013699,2]
[400160690,1767161441094,-500.0,0.00013699,2]
[400160691,1767161441104,-500.0,0.00013699,2]
[400160692,1767161441113,-500.0,0.00013699,2]
[400160693,1767161441123,-242.87306652,0.00013699,2]
[400160694,1767161441132,-500.0,0.00013699,2]
[400160695,1767161441142,-500.0,0.00013699,2]
[400160696,1767161441152,-500.0,0.00013699,2]
[400160697,1767161441161,-346.46150426,0.00013699,2]
[400160698,1767161441171,-500.0,0.00013699,2]
[400160699,1767161441180,-500.0,0.00013699,2]
[400160700,1767161441189,-500.0,0.00013699,2]
[400160701,1767161441198,-500.0,0.00013699,2]
[400160702,1767161441208,-500.0,0.00013699,2]
[400160703,1767161441217,-500.0,0.00013699,2]
[400160704,1767161441226,-158.10807846,0.00013699,2]
[400160705,1767161441235,-500.0,0.00013699,2]
[400160706,1767161441245,-500.0,0.00013699,2]
[400160707,1767161441255,-163.65866633,0.00013699,2]
[400160708,1767161441264,-500.0,0.00013699,2]
[400160709,1767161441274,-500.0,0.00013699,2]
[400160710,1767161441283,-178.08460977,0.00013699,2]
[400160711,1767161441292,-500.0,0.00013699,2]
[400160712,1767161441301,-540.63230604,0.00013699,2]
[400160713,1767161441311,-500.0,0.00013699,2]
[400160714,1767161441320,-500.0,0.00013699,2]
[400160715,1767161441330,-307.59957655,0.00013699,2]
[400160716,1767161441339,-500.0,0.00013699,2]
[400160717,1767161441348,-500.0,0.00013699,2]
[400160718,1767161441358,-500.0,0.00013699,2]
[400160719,1767161441367,-500.0,0.00013699,2]
[400160720,1767161441377,-500.0,0.00013699,2]
[400160721,1767161441386,-309.28633635,0.00013699,2]
[400160722,1767161441395,-500.0,0.00013699,2]
[400160723,1767161441405,-500.0,0.00013699,2]
[400160724,1767161441414,-500.0,0.00013699,2]
[400160725,1767161441423,-160.15137988,0.00013699,2]
[400160726,1767161441432,-500.0,0.00013699,2]
[400160727,1767161441441,-500.0,0.00013699,2]
[400160728,1767161441450,-165.03764715,0.00013699,2]
[400160729,1767161441459,-500.0,0.00013699,2]
[400160730,1767161441469,-500.0,0.00013699,2]
[400160731,1767161441478,-500.0,0.00013699,2]
[400160732,1767161441487,-500.0,0.00013699,2]
[400160733,1767161441496,-298.53483888,0.00013699,2]
[400160734,1767161441505,-260.28159851,0.00013699,2]
[400160735,1767161441515,-160.3309554,0.00013699,2]
[400160736,1767161441523,-500.0,0.00013699,2]
[400160737,1767161441532,-500.57498562,0.00013699,2]
[400160738,1767161441542,-500.0,0.00013699,2]
[400160739,1767161441551,-500.0,0.00013699,2]
[400160740,1767161441564,-500.0,0.00013699,2]
[400160741,1767161441573,-500.0,0.00013699,2]
[400160742,1767161441582,-500.0,0.00013699,2]
[400160743,1767161441591,-500.0,0.00013699,2]
[400160744,1767161441601,-500.0,0.00013699,2]
[400160745,1767161441611,-500.0,0.00013699,2]
[400160746,1767161441620,-158.3853059,0.00013699,2]
[400160747,1767161441632,-500.0,0.00013699,2]
[400160748,1767161441643,-500.0,0.00013699,2]
[400160749,1767161441653,-500.0,0.00013699,2]
[400160750,1767161441662,-500.0,0.00013699,2]
[400160751,1767161441672,-500.0,0.00013699,2]
[400160752,1767161441682,-500.0,0.00013699,2]
[400160753,1767161441692,-500.0,0.00013699,2]
[400160754,1767161441702,-500.0,0.00013699,2]
[400160755,1767161441712,-500.0,0.00013699,2]
[400160756,1767161441721,-368.98103336,0.00013699,2]
[400160757,1767161441731,-500.0,0.00013699,2]
[400160758,1767161441742,-500.0,0.00013699,2]
[400160759,1767161441751,-720.0,0.00013702,2]
[400160760,1767161441761,-1000.0,0.00013821,2]
[400160761,1767161441771,-544.63270575,0.00013821,2]
[400160762,1767161441780,-1000.0,0.00013821,2]
[400160763,1767161441790,-1000.0,0.00013821,2]
[400160764,1767161441799,-1000.0,0.00013821,2]
[400160765,1767161441809,-413.99757981,0.00013821,2]
[400160766,1767161441818,-1000.0,0.00013821,2]
[400160767,1767161441828,-1000.0,0.00013821,2]
[400160768,1767161441837,-1000.0,0.00013821,2]
[400160769,1767161441846,-1000.0,0.00013821,2]
[400160770,1767161441855,-1000.0,0.00013821,2]
[400160771,1767161441864,-1000.0,0.00013821,2]
[400160772,1767161441874,-315.88685405,0.00013821,2]
[400160773,1767161441883,-1000.0,0.00013821,2]
[400160774,1767161441892,-1000.0,0.00013821,2]
[400160775,1767161441901,-1000.0,0.00013821,2]
[400160776,1767161441911,-1000.0,0.00013821,2]
[400160777,1767161441920,-1000.0,0.00013821,2]
[400160778,1767161441929,-1000.0,0.00013821,2]
[400160779,1767161441938,-1000.0,0.00013821,2]
[400160780,1767161441947,-1000.0,0.00013821,2]
[400160781,1767161441956,-1000.0,0.00013821,2]
[400160782,1767161441965,-1000.0,0.00013821,2]
[400160783,1767161441974,-1000.0,0.00013821,2]
[400160784,1767161441984,-686.16786472,0.00013821,2]
[400160785,1767161441993,-1000.0,0.00013821,2]
[400160786,1767161442003,-690.31177109,0.00013821,2]
[400160787,1767161442012,-849.3977641,0.00013821,2]
[400160788,1767161442022,-1000.0,0.00013821,2]
[400160789,1767161442031,-1000.0,0.00013821,2]
[400160790,1767161442040,-1000.0,0.00013821,2]
[400160791,1767161442050,-1000.0,0.00013821,2]
[400160792,1767161442059,-1000.0,0.00013821,2]
[400160793,1767161442068,-1061.98334321,0.00013821,2]
[400160794,1767161442078,-1000.0,0.00013821,2]
[400160795,1767161442087,-1000.0,0.00013821,2]
[400160796,1767161442096,-1000.0,0.00013821,2]
[400160797,1767161442106,-1000.0,0.00013821,2]
[400160798,1767161442115,-602.47879957,0.00013821,2]
[400160799,1767161442124,-1000.0,0.00013821,2]
[400160800,1767161442133,-1000.0,0.00013821,2]
[400160801,1767161442142,-1000.0,0.00013821,2]
[400160802,1767161442151,-1000.0,0.00013821,2]
[400160803,1767161442161,-1641.48437555,0.0001384,2]
[400160804,1767161442170,-3187.49,0.00013891,2]
[400160805,1767161442180,-163.51788502,0.00013973,2]
[400160806,1767161442189,-480.0,0.00013988,2]
[400160807,1767161442199,-181.0,0.00014009,2]
[400160808,1767161442208,-587.0,0.00014009,2]
[400160809,1767161442217,-155.0,0.00014034,2]
[400160810,1767161442227,-409.13134682,0.00014136,2]
[400160811,1767161442236,-409.3356058,0.00014136,2]
[400160812,1767161442245,-409.33581007,0.00014136,2]
[400160813,1767161442254,-468.3105326,0.00014176,2]
[400160814,1767161442263,-600.0,0.00014221,2]
[400160815,1767161442274,-1000.0,0.00014247,2]
[400160816,1767161442399,-251.84601956,0.00014247,2]
[400160817,1767161442408,-1000.0,0.00014247,2]
[400160818,1767161442417,-1000.0,0.00014247,2]
[400160819,1767161442428,-1000.0,0.00014247,2]
[400160820,1767161442437,-1000.0,0.00014247,2]
[400160821,1767161442446,-1000.0,0.00014247,2]
[400160822,1767161442455,-500.68443154,0.00014247,2]
[400160823,1767161442465,-1000.0,0.00014247,2]
[400160824,1767161442474,-1000.0,0.00014247,2]
[400160825,1767161442483,-1000.0,0.00014247,2]
[400160826,1767161442492,-1000.0,0.00014247,2]
[400160827,1767161442502,-1000.0,0.00014247,2]
[400160828,1767161442511,-500.4478313,0.00014247,2]
[400160829,1767161442520,-1000.0,0.00014247,2]
[400160830,1767161442530,-1000.0,0.00014247,2]
[400160831,1767161442539,-1000.0,0.00014247,2]
[400160832,1767161442548,-1000.0,0.00014247,2]
[400160833,1767161442561,-1000.0,0.00014247,2]
[400160834,1767161442571,-500.48099046,0.00014247,2]
[400160835,1767161442580,-297.63479171,0.00014247,2]
[400160836,1767161442589,-1000.0,0.00014247,2]
[400160837,1767161442599,-1000.0,0.00014247,2]
[400160838,1767161442609,-1000.0,0.00014247,2]
[400160839,1767161442618,-1000.0,0.00014247,2]
[400160840,1767161442630,-495.63847364,0.00014247,2]
[400160841,1767161442639,-1000.75482131,0.00014247,2]
[400160842,1767161442649,-1000.0,0.00014247,2]
[400160843,1767161442658,-1000.0,0.00014247,2]
[400160844,1767161442667,-1000.0,0.00014247,2]
[400160845,1767161442676,-1000.0,0.00014247,2]
[400160846,1767161442686,-1000.0,0.00014247,2]
[400160847,1767161442695,-345.96405937,0.00014247,2]
[400160848,1767161442704,-1000.0,0.00014247,2]
[400160849,1767161442713,-911.90264951,0.00014247,2]
[400160850,1767161442723,-1000.0,0.00014247,2]
[400160852,1767161442732,-1000.0,0.00014247,2]
[400160853,1767161442742,-1002.4340095,0.00014247,2]
[400160855,1767161442751,-1005.9697834,0.00014247,2]
[400160856,1767161442760,-688.75934812,0.00014247,2]
[400160857,1767161442770,-1000.0,0.00014247,2]
[400160858,1767161442779,-1000.0,0.00014247,2]
[400160859,1767161442788,-1000.0,0.00014247,2]
[400160860,1767161442798,-1000.0,0.00014247,2]
[400160861,1767161442807,-1000.0,0.00014247,2]
[400160862,1767161442816,-1000.0,0.00014247,2]
[400160863,1767161442826,-1000.0,0.00014247,2]
[400160864,1767161442835,-1000.0,0.00014247,2]
[400160865,1767161442844,-1000.0,0.00014247,2]
[400160866,1767161442853,-1000.0,0.00014247,2]
[400160867,1767161442862,-1000.0,0.00014247,2]
[400160868,1767161442872,-1000.0,0.00014247,2]
[400160869,1767161442881,-1000.0,0.00014247,2]
[400160870,1767161442891,-866.45646788,0.00014247,2]
[400160871,1767161442900,-454.65827101,0.00014247,2]
[400160872,1767161442909,-1000.0,0.00014247,2]
[400160873,1767161442919,-1000.0,0.00014247,2]
[400160874,1767161442928,-1000.0,0.00014247,2]
[400160875,1767161442937,-1000.0,0.00014247,2]
[400160876,1767161442947,-1000.0,0.00014247,2]
[400160877,1767161442955,-1000.0,0.00014247,2]
[400160878,1767161442965,-1000.0,0.00014247,2]
[400160879,1767161442974,-1000.0,0.00014247,2]
[400160880,1767161442983,-1000.0,0.00014247,2]
[400160881,1767161442993,-433.15519118,0.00014247,2]
[400160882,1767161443002,-1000.0,0.00014247,2]
[400160883,1767161443011,-1000.0,0.00014247,2]
[400160884,1767161443022,-1000.0,0.00014247,2]
[400160885,1767161443031,-609.17214565,0.00014247,2]
[400160886,1767161443041,-1000.0,0.00014247,2]
[400160887,1767161443050,-1000.0,0.00014247,2]
[400160888,1767161443060,-1000.0,0.00014247,2]
[400160889,1767161443069,-1000.0,0.00014247,2]
[400160890,1767161443079,-267.6781502,0.00014247,2]
[400160891,1767161443088,-1000.0,0.00014247,2]
[400160892,1767161443098,-439.97362328,0.00014247,2]
[400160893,1767161443107,-295.43360933,0.00014247,2]
[400160894,1767161443117,-1000.0,0.00014247,2]
[400160895,1767161443126,-1000.0,0.00014247,2]
[400160896,1767161443136,-1000.0,0.00014247,2]
[400160897,1767161443145,-409.13318904,0.00014324,2]
[400160898,1767161443155,-204.87237042,0.00014324,2]
[400160899,1767161443164,-1500.0,0.00014368,2]
[400160900,1767161443174,-1239.12450639,0.00014368,2]
[400160901,1767161443183,-782.65977069,0.00014368,2]
[400160902,1767161443192,-1500.0,0.00014368,2]
[400160903,1767161443202,-1006.37696416,0.00014368,2]
[400160904,1767161443211,-1500.0,0.00014368,2]
[400160905,1767161443221,-1534.26412326,0.00014368,2]
[400160906,1767161443230,-1500.0,0.00014368,2]
[400160907,1767161443240,-1500.0,0.00014368,2]
[400160908,1767161443249,-1465.35115233,0.00014368,2]
[400160909,1767161443258,-1500.0,0.00014368,2]
[400160910,1767161443267,-196.20087533,0.00014368,2]
[400160911,1767161443277,-1500.0,0.00014368,2]
[400160912,1767161443286,-1500.0,0.00014368,2]
[400160913,1767161443295,-1500.0,0.00014368,2]
[400160914,1767161443304,-1500.0,0.00014368,2]
[400160915,1767161443313,-660.40400037,0.00014368,2]
[400160916,1767161443322,-1500.0,0.00014368,2]
[400160917,1767161443331,-1500.0,0.00014368,2]
[400160918,1767161443340,-1500.0,0.00014368,2]
[400160919,1767161443350,-750.79014339,0.00014368,2]
[400160920,1767161443359,-1500.0,0.00014368,2]
[400160921,1767161443369,-1500.0,0.00014368,2]
[400160922,1767161443378,-1500.0,0.00014368,2]
[400160923,1767161443387,-1500.0,0.00014368,2]
[400160924,1767161443395,-1500.0,0.00014368,2]
[400160925,1767161443404,-1220.45191793,0.00014368,2]
[400160926,1767161443414,-1500.0,0.00014368,2]
[400160927,1767161443423,-752.44576455,0.00014368,2]
[400160928,1767161443432,-1500.0,0.00014368,2]
[400160929,1767161443442,-1500.0,0.00014368,2]
[400160930,1767161443451,-1424.40432946,0.00014368,2]
[400160931,1767161443460,-1500.0,0.00014368,2]
[400160932,1767161443469,-1500.0,0.00014368,2]
[400160933,1767161443479,-1500.0,0.00014368,2]
[400160934,1767161443488,-5319.93955551,0.00014396,2]
[400160935,1767161443497,-3984.36,0.0001447,2]
[400160936,1767161443506,-900.0,0.00014768,2]
[400160937,1767161443515,-1500.0,0.00014795,2]
[400160938,1767161443524,-524.36073826,0.00014795,2]
[400160939,1767161443533,-1500.0,0.00014795,2]
[400160940,1767161443543,-1500.0,0.00014795,2]
[400160941,1767161443552,-1500.0,0.00014795,2]
[400160942,1767161443563,-1371.80562161,0.00014795,2]
[400160943,1767161443573,-1500.0,0.00014795,2]
[400160944,1767161443582,-1500.0,0.00014795,2]
[400160945,1767161443592,-614.96936602,0.00014795,2]
[400160946,1767161443602,-1500.0,0.00014795,2]
[400160947,1767161443611,-1500.0,0.00014795,2]
[400160948,1767161443621,-690.10820632,0.00014795,2]
[400160949,1767161443632,-1500.0,0.00014795,2]
[400160950,1767161443641,-463.63501052,0.00014795,2]
[400160951,1767161443651,-1500.0,0.00014795,2]
[400160952,1767161443660,-662.55448324,0.00014795,2]
[400160953,1767161443670,-1500.0,0.00014795,2]
[400160954,1767161443680,-1500.0,0.00014795,2]
[400160955,1767161443689,-1500.0,0.00014795,2]
[400160956,1767161443699,-1500.0,0.00014795,2]
[400160957,1767161443708,-1500.0,0.00014795,2]
[400160958,1767161443718,-1500.0,0.00014795,2]
[400160959,1767161443727,-1500.0,0.00014795,2]
[400160960,1767161443737,-1500.0,0.00014795,2]
[400160961,1767161443747,-1500.0,0.00014795,2]
[400160962,1767161443757,-1500.0,0.00014795,2]
[400160963,1767161443766,-1425.73894344,0.00014795,2]
[400160964,1767161443776,-1078.13053233,0.00014795,2]
[400160965,1767161443785,-1500.0,0.00014795,2]
[400160966,1767161443794,-1500.0,0.00014795,2]
[400160967,1767161443803,-1500.0,0.00014795,2]
[400160968,1767161443812,-1500.0,0.00014795,2]
[400160969,1767161443821,-1500.0,0.00014795,2]
[400160970,1767161443831,-1516.82099752,0.00014795,2]
[400160971,1767161443840,-1500.0,0.00014795,2]
[400160972,1767161443850,-1500.0,0.00014795,2]
[400160973,1767161443859,-1500.0,0.00014795,2]
[400160974,1767161443868,-1500.0,0.00014795,2]
[400160976,1767161443877,-1500.0,0.00014795,2]
[400160977,1767161443887,-1500.0,0.00014795,2]
[400160978,1767161443896,-1500.0,0.00014795,2]
[400160980,1767161443905,-1500.0,0.00014795,2]
[400160983,1767161443914,-1500.0,0.00014795,2]
[400160984,1767161443924,-1142.5109954,0.00014795,2]
[400160985,1767161443933,-1500.0,0.00014795,2]
[400160986,1767161443942,-1500.0,0.00014795,2]
[400160987,1767161443951,-1500.0,0.00014795,2]
[400160988,1767161443960,-1500.0,0.00014795,2]
[400160989,1767161443969,-1011.86637987,0.00014795,2]
[400160990,1767161443978,-1500.0,0.00014795,2]